bitfinex-derivatives/quotes_BTCF0:USTF0_20240917
["timestamp","ask_amount","ask_price","bid_price","bid_amount"]
[1726589710737,0.081759,61146.0,61145.0,0.08421318]
[1726589711131,0.04084533,61146.0,61145.0,0.08421318]
[1726589711327,0.083756,61148.0,61147.0,0.081757]
[1726589711633,0.081761,61145.0,61144.0,0.081761]
[1726589712334,0.081761,61144.0,61143.0,0.1023]
[1726589712930,0.081763,61143.0,61142.0,0.3608]
[1726589714027,0.082763,61143.0,61142.0,0.3608]
[1726589714332,0.272763,61143.0,61142.0,0.3608]
[1726589714738,0.082763,61143.0,61142.0,0.3608]
[1726589715328,0.083763,61143.0,61142.0,0.3608]
[1726589715741,0.273763,61143.0,61142.0,0.3608]
[1726589716328,0.083763,61143.0,61140.0,0.081766]
[1726589716539,0.081765,61142.0,61140.0,0.04885169]
[1726589716728,0.081765,61141.0,61139.0,0.25346499]
[1726589716942,0.081765,61141.0,61140.0,0.04885169]
[1726589717331,0.081765,61141.0,61140.0,0.04870142]
[1726589717538,0.081765,61141.0,61139.0,0.2046133]
[1726589717754,0.081767,61140.0,61139.0,0.1228453]
[1726589718636,0.001,61141.0,61139.0,0.1228453]
[1726589719142,0.082767,61140.0,61139.0,0.1228453]
[1726589719341,0.082767,61140.0,61139.0,0.0219453]
[1726589719543,0.001,61140.0,61137.0,0.52792801]
[1726589719843,0.081768,61139.0,61138.0,0.06516801]
[1726589720446,0.081768,61139.0,61137.0,0.48467178]
[1726589720638,0.081769,61138.0,61137.0,0.48235178]
[1726589721140,0.081769,61138.0,61137.0,0.12155178]
[1726589721439,0.081769,61138.0,61137.0,0.1865645]
[1726589721640,0.081769,61138.0,61137.0,0.12155178]
[1726589722343,0.081769,61138.0,61137.0,0.1865645]
[1726589722547,0.082769,61138.0,61137.0,0.12155178]
[1726589722738,0.272769,61138.0,61137.0,0.18662064]
[1726589723142,0.273769,61138.0,61137.0,0.18662064]
[1726589723641,0.273769,61138.0,61137.0,0.12155178]
[1726589724743,0.272769,61138.0,61137.0,0.12155178]
[1726589724933,0.273769,61138.0,61137.0,0.12155178]
[1726589725134,0.355538,61138.0,61137.0,0.12155178]
[1726589725348,0.273769,61138.0,61137.0,0.12155178]
[1726589725548,0.272769,61138.0,61137.0,0.20295034]
[1726589725752,0.273769,61138.0,61137.0,0.32758728]
[1726589726049,0.355538,61138.0,61137.0,0.02195178]
[1726589726241,0.245316,61136.0,61135.0,0.08139856]
[1726589726536,0.16355,61134.0,61133.0,0.02462195]
[1726589726741,0.16355,61134.0,61133.0,0.12709526]
[1726589726942,0.081775,61134.0,61133.0,0.12709526]
[1726589727142,0.081772,61136.0,61133.0,0.31709526]
[1726589727444,0.082772,61136.0,61135.0,0.3608]
[1726589727752,0.082772,61136.0,61135.0,0.48544159]
[1726589728951,0.353545,61136.0,61135.0,0.48544159]
[1726589729151,0.354545,61136.0,61135.0,0.48544159]
[1726589729653,0.355545,61136.0,61135.0,0.48544159]
[1726589729952,0.002,61136.0,61135.0,0.48544159]
[1726589730141,0.002,61136.0,61135.0,0.56721459]
[1726589730458,0.002,61136.0,61135.0,0.66489287]
[1726589731138,0.002,61136.0,61135.0,0.56721459]
[1726589733546,0.083772,61136.0,61135.0,0.48544159]
[1726589735243,0.083772,61136.0,61135.0,0.58311987]
[1726589735651,0.083772,61136.0,61135.0,0.48544159]
[1726589736656,0.002,61136.0,61135.0,0.48544159]
[1726589736853,0.002,61136.0,61135.0,0.56721459]
[1726589737359,0.002,61136.0,61135.0,0.56720807]
[1726589737554,0.083772,61136.0,61135.0,0.48543507]
[1726589739459,0.081773,61135.0,61133.0,0.08171642]
[1726589739662,0.163554,61132.0,61131.0,0.10351017]
[1726589739859,0.08178,61130.0,61129.0,0.08171642]
[1726589740164,0.08178,61130.0,61129.0,0.20636182]
[1726589740357,0.16356,61130.0,61129.0,0.20636182]
[1726589740557,0.16356,61130.0,61129.0,0.0817084]
[1726589741164,0.08178,61130.0,61129.0,0.0817084]
[1726589741358,0.08278,61130.0,61128.0,0.0817084]
[1726589741563,0.081781,61129.0,61128.0,0.0817084]
[1726589742457,0.081781,61129.0,61127.0,0.1064095]
[1726589742864,0.081781,61129.0,61127.0,0.1881935]
[1726589743460,0.081781,61129.0,61127.0,0.1064851]
[1726589743661,0.082781,61129.0,61127.0,0.1064851]
[1726589743966,0.081783,61128.0,61127.0,0.0247011]
[1726589745062,0.081783,61128.0,61127.0,0.1064095]
[1726589745273,0.271783,61128.0,61127.0,0.02224724]
[1726589745462,0.271783,61128.0,61124.0,0.46342]
[1726589745463,0.081784,61127.0,61125.0,0.0817084]
[1726589746475,0.081784,61127.0,61124.0,0.64906988]
[1726589746664,0.082784,61127.0,61124.0,0.64674988]
[1726589746966,0.082784,61127.0,61125.0,0.0817084]
[1726589747368,0.081785,61126.0,61125.0,0.0817084]
[1726589747569,0.081785,61126.0,61124.0,0.56728188]
[1726589747770,0.081785,61126.0,61124.0,0.56496188]
[1726589748374,0.081785,61126.0,61124.0,0.48325348]
[1726589748568,0.002,61127.0,61124.0,0.38295348]
[1726589748569,0.271787,61125.0,61124.0,0.38295348]
[1726589750163,0.272787,61125.0,61124.0,0.38295348]
[1726589751878,0.273787,61125.0,61124.0,0.38295348]
[1726589752077,0.355574,61125.0,61124.0,0.38295348]
[1726589752274,0.273787,61125.0,61124.0,0.38295348]
[1726589752776,0.083787,61125.0,61124.0,0.38295348]
[1726589755178,0.165574,61125.0,61124.0,0.38295348]
[1726589755886,0.165574,61125.0,61124.0,0.43196407]
[1726589756192,0.355574,61125.0,61124.0,0.43196407]
[1726589756379,0.192,61125.0,61124.0,0.38295348]
[1726589761287,0.273787,61125.0,61124.0,0.38295348]
[1726589761589,0.273787,61125.0,61124.0,0.02215348]
[1726589761787,0.273787,61125.0,61120.0,0.00245417]
[1726589761788,0.192,61125.0,61120.0,0.00245417]
[1726589761990,0.19,61121.0,61120.0,0.00245417]
[1726589762180,0.19,61121.0,61115.0,0.04900064]
[1726589762376,0.19,61121.0,61118.0,0.13079664]
[1726589762582,0.19,61121.0,61119.0,0.081794]
[1726589762795,0.3608,61120.0,61118.0,0.04900064]
[1726589763787,0.3608,61120.0,61117.0,0.04900064]
[1726589763989,0.3618,61120.0,61117.0,0.04900064]
[1726589764793,0.3628,61120.0,61117.0,0.04900064]
[1726589765989,0.002,61120.0,61116.0,0.081799]
[1726589766189,0.192,61120.0,61116.0,0.081799]
[1726589766399,0.192,61120.0,61115.0,0.04900064]
[1726589766400,0.002,61120.0,61115.0,0.04900064]
[1726589766698,0.002,61120.0,61119.0,0.632595]
[1726589766907,0.3608,61132.0,61120.0,0.081793]
[1726589767098,0.5508,61132.0,61124.0,0.04897861]
[1726589767297,0.5508,61132.0,61124.0,0.40977861]
[1726589767501,0.5508,61132.0,61129.0,0.081781]
[1726589767798,0.5508,61132.0,61130.0,0.08178]
[1726589767990,0.5508,61132.0,61125.0,0.05143235]
[1726589768194,0.19,61128.0,61127.0,0.081784]
[1726589768997,0.3618,61132.0,61131.0,0.081779]
[1726589768998,0.001,61132.0,61131.0,0.081779]
[1726589769300,0.001,61132.0,61131.0,0.5508]
[1726589769497,0.001,61132.0,61131.0,0.632579]
[1726589769701,0.001,61132.0,61131.0,0.442579]
[1726589770198,0.002,61132.0,61131.0,0.442579]
[1726589770593,0.001,61132.0,61131.0,0.442579]
[1726589770897,0.001,61132.0,61131.0,0.444579]
[1726589771893,0.001,61132.0,61131.0,0.446579]
[1726589771894,0.002,61132.0,61131.0,0.446579]
[1726589772801,0.002,61132.0,61131.0,0.718358]
[1726589772991,0.002,61132.0,61131.0,0.636579]
[1726589773198,0.002,61132.0,61131.0,0.446579]
[1726589775506,0.192,61132.0,61131.0,0.004]
[1726589776206,1.446314,61132.0,61131.0,0.004]
[1726589776396,0.081779,61131.0,61125.0,0.00245374]
[1726589776708,0.081785,61126.0,61125.0,0.00245374]
[1726589777106,0.081785,61126.0,61125.0,0.02463369]
[1726589777301,0.081785,61126.0,61125.0,0.00245374]
[1726589777493,0.081785,61126.0,61125.0,0.00345374]
[1726589778394,0.082785,61126.0,61125.0,0.00445374]
[1726589778594,0.083785,61126.0,61125.0,0.00445374]
[1726589779999,0.16557,61126.0,61125.0,0.00445374]
[1726589780206,0.52637,61126.0,61125.0,0.00445374]
[1726589783415,0.52637,61126.0,61125.0,0.002]
[1726589786221,0.444585,61126.0,61125.0,0.002]
[1726589786411,0.52637,61126.0,61125.0,0.002]
[1726589786734,0.608155,61126.0,61125.0,0.002]
[1726589789415,0.607155,61126.0,61125.0,0.001]
[1726589789619,0.608155,61126.0,61125.0,0.001]
[1726589789808,1.098955,61126.0,61125.0,0.001]
[1726589790012,0.081802,61114.0,61110.0,0.3608]
[1726589790210,0.442599,61116.0,61115.0,0.0818]
[1726589790406,0.442599,61116.0,61110.0,0.3608]
[1726589790407,0.081806,61111.0,61110.0,0.46513062]
[1726589791520,0.081806,61111.0,61110.0,0.38332562]
[1726589792020,0.081806,61111.0,61107.0,0.00896345]
[1726589792021,1.64272,61111.0,61107.0,0.00896345]
[1726589792221,0.081827,61095.0,61085.0,0.3608]
[1726589792519,0.19,61101.0,61094.0,0.081828]
[1726589792816,0.3608,61103.0,61095.0,0.0965]
[1726589792817,0.19,61097.0,61095.0,0.0965]
[1726589793228,0.081826,61096.0,61095.0,0.0965]
[1726589793524,0.163652,61096.0,61095.0,0.0965]
[1726589793719,0.081827,61095.0,61094.0,0.02232874]
[1726589793925,0.081827,61095.0,61077.0,0.2717084]
[1726589793926,0.081837,61088.0,61086.0,0.0923]
[1726589794120,0.19,61091.0,61086.0,0.0923]
[1726589794513,0.632638,61087.0,61086.0,0.0923]
[1726589794715,0.081843,61083.0,61082.0,0.0908]
[1726589794916,0.081844,61082.0,61081.0,0.12067478]
[1726589795116,0.442644,61082.0,61081.0,0.12067478]
[1726589795410,0.442644,61082.0,61081.0,0.02417478]
[1726589796413,0.443644,61082.0,61081.0,0.02417478]
[1726589797324,0.443644,61082.0,61081.0,0.02171903]
[1726589797630,0.081851,61078.0,61077.0,0.00245586]
[1726589798620,0.3628,61082.0,61077.0,0.00245586]
[1726589798826,0.08185,61078.0,61077.0,0.00245586]
[1726589800425,0.08285,61078.0,61077.0,0.00245586]
[1726589800728,0.08385,61078.0,61077.0,0.00245586]
[1726589801028,0.7165,61078.0,61077.0,0.00245586]
[1726589801217,2.29835,61078.0,61077.0,0.00245586]
[1726589801527,0.081871,61062.0,61052.0,0.00245693]
[1726589801745,0.081862,61069.0,61052.0,0.00245693]
[1726589801746,0.7216,61057.0,61052.0,0.00245693]
[1726589801913,0.7216,61057.0,61056.0,0.081879]
[1726589801914,0.3608,61057.0,61056.0,0.081879]
[1726589802221,0.3608,61057.0,61053.0,0.0905]
[1726589802627,0.081879,61056.0,61053.0,0.0905]
[1726589803025,0.3608,61057.0,61053.0,0.0905]
[1726589803229,0.3618,61057.0,61053.0,0.0905]
[1726589803625,0.081882,61054.0,61053.0,0.0905]
[1726589803819,0.001,61056.0,61053.0,0.0905]
[1726589804125,0.3608,61057.0,61055.0,0.271881]
[1726589804328,0.3618,61057.0,61056.0,0.178379]
[1726589805214,0.3608,61057.0,61056.0,0.178379]
[1726589805421,0.08188,61056.0,61048.0,0.10383611]
[1726589805625,0.5508,61057.0,61049.0,0.180889]
[1726589805626,0.3608,61050.0,61049.0,0.180889]
[1726589805822,0.5508,61057.0,61049.0,0.099]
[1726589805823,0.3608,61052.0,61049.0,0.099]
[1726589806027,0.3608,61052.0,61050.0,0.081887]
[1726589806224,0.3608,61052.0,61048.0,0.02194611]
[1726589806225,0.19,61051.0,61048.0,0.02194611]
[1726589806422,0.19,61051.0,61037.0,0.1874]
[1726589806624,0.3608,61052.0,61050.0,0.081887]
[1726589806927,0.3608,61052.0,61051.0,0.1874]
[1726589807130,0.3618,61052.0,61051.0,0.361286]
[1726589807828,0.001,61052.0,61051.0,0.361286]
[1726589809526,0.002,61052.0,61051.0,0.38309573]
[1726589810233,0.083885,61052.0,61051.0,0.30120973]
[1726589811941,0.001,61052.0,61051.0,0.57309573]
[1726589812235,0.3608,61057.0,61051.0,0.49120973]
[1726589812532,0.001,61052.0,61051.0,0.49120973]
[1726589812723,0.001,61052.0,61051.0,0.57309573]
[1726589813125,0.002,61052.0,61051.0,0.57309573]
[1726589813428,0.002,61052.0,61051.0,0.38309573]
[1726589814225,0.001,61052.0,61051.0,0.11520973]
[1726589814527,0.002,61052.0,61051.0,0.11520973]
[1726589814831,0.002,61052.0,61051.0,0.11620973]
[1726589815232,0.002,61052.0,61051.0,0.19809573]
[1726589815528,0.002,61052.0,61051.0,0.38809573]
[1726589815832,1.78471226,73851.0,61055.0,0.00245644]
[1726589815833,0.081856,61074.0,61055.0,0.00245644]
[1726589816035,0.081856,61074.0,61070.0,0.19]
[1726589816227,0.081857,61073.0,61070.0,0.19]
[1726589816423,0.3608,61077.0,61070.0,0.19]
[1726589816625,0.3608,61077.0,61069.0,0.3608]
[1726589816825,0.081858,61073.0,61069.0,0.3608]
[1726589817026,0.08186,61070.0,61069.0,0.3608]
[1726589817530,0.081856,61074.0,61069.0,0.3608]
[1726589817727,0.081857,61073.0,61069.0,0.3608]
[1726589818028,0.082857,61073.0,61070.0,0.01]
[1726589818627,0.081858,61072.0,61069.0,0.39574052]
[1726589819236,0.442652,61077.0,61069.0,0.39574052]
[1726589819237,0.081859,61071.0,61070.0,0.019]
[1726589820532,0.002,61073.0,61070.0,0.019]
[1726589820835,0.081859,61071.0,61069.0,0.38174052]
[1726589821138,0.002,61072.0,61069.0,0.47868807]
[1726589821524,0.001,61071.0,61070.0,0.29357476]
[1726589821723,1.5,61082.0,61070.0,0.29357476]
[1726589821724,0.0044,61094.0,61070.0,0.62700721]
[1726589821929,0.3646,61095.0,61094.0,0.081828]
[1726589822129,0.3608,61095.0,61093.0,0.19]
[1726589822340,0.3608,61095.0,61093.0,0.271829]
[1726589822543,0.3608,61106.0,61094.0,0.3608]
[1726589822726,0.3608,61106.0,61099.0,0.08130726]
[1726589823039,0.3608,61106.0,61100.0,0.08130726]
[1726589823241,0.3608,61106.0,61098.0,0.19]
[1726589823242,0.3608,61106.0,61099.0,0.08130726]
[1726589823436,0.081815,61105.0,61099.0,0.08130726]
[1726589823637,0.081815,61105.0,61098.0,0.08130726]
[1726589823830,0.3608,61106.0,61098.0,0.08130726]
[1726589824031,0.3608,61106.0,61099.0,0.08130726]
[1726589824231,0.3608,61106.0,61098.0,0.08130726]
[1726589824636,0.3608,61106.0,61099.0,0.08130726]
[1726589824838,0.3618,61106.0,61099.0,0.09030726]
[1726589825336,0.3628,61106.0,61099.0,0.009]
[1726589825536,0.444613,61106.0,61099.0,0.009]
[1726589825741,0.081818,61102.0,61098.0,0.023]
[1726589825941,0.081818,61102.0,61099.0,0.014]
[1726589827430,0.081818,61102.0,61098.0,0.009]
[1726589827738,0.081819,61101.0,61099.0,0.014]
[1726589827934,0.3628,61106.0,61099.0,0.014]
[1726589828244,0.082819,61102.0,61099.0,0.02]
[1726589828744,0.08182,61100.0,61099.0,0.009]
[1726589828930,0.44262,61100.0,61098.0,0.011]
[1726589829136,0.44262,61100.0,61099.0,0.007]
[1726589829341,0.081827,61095.0,61094.0,0.02138405]
[1726589829640,0.081827,61095.0,61086.0,0.02092951]
[1726589829641,0.081838,61087.0,61086.0,0.02092951]
[1726589829838,0.081838,61087.0,61079.0,0.00245582]
[1726589829839,0.163694,61080.0,61079.0,0.00245582]
[1726589830043,0.271847,61080.0,61079.0,0.00245582]
[1726589830439,0.714494,61080.0,61079.0,0.00245582]
[1726589830944,0.081866,61066.0,61065.0,0.00245594]
[1726589831149,0.19,61066.0,61065.0,0.00245594]
[1726589831348,0.271866,61066.0,61065.0,0.00245594]
[1726589831644,0.632666,61066.0,61065.0,0.00245594]
[1726589831845,0.714532,61066.0,61065.0,0.00245594]
[1726589832443,0.632666,61066.0,61065.0,0.00245594]
[1726589832638,0.443666,61066.0,61065.0,0.01145594]
[1726589832843,0.001,61066.0,61065.0,0.09332294]
[1726589833044,0.3608,61078.0,61065.0,1.10273594]
[1726589833246,0.3608,61078.0,61074.0,0.19]
[1726589833447,0.3608,61078.0,61065.0,0.19405594]
[1726589833650,0.3608,61078.0,61066.0,0.081865]
[1726589833949,0.3608,61078.0,61065.0,0.27432294]
[1726589834148,0.3608,61071.0,61065.0,0.27432294]
[1726589834451,0.3608,61071.0,61065.0,0.00245594]
[1726589834452,0.081866,61066.0,61065.0,0.00245594]
[1726589834838,0.632666,61066.0,61065.0,0.00245594]
[1726589835043,0.632666,61066.0,61065.0,0.00445594]
[1726589835241,0.714532,61066.0,61065.0,0.00445594]
[1726589835844,0.715532,61066.0,61065.0,0.00645594]
[1726589836046,0.805532,61066.0,61065.0,0.00645594]
[1726589836342,0.805532,61066.0,61043.0,0.08130726]
[1726589836343,0.081887,61051.0,61043.0,0.081897]
[1726589836648,0.081889,61049.0,61043.0,0.081897]
[1726589836839,0.3608,61050.0,61043.0,0.02125267]
[1726589836840,0.08189,61048.0,61043.0,0.02125267]
[1726589837041,0.08189,61048.0,61042.0,0.3608]
[1726589837253,0.08189,61048.0,61042.0,0.442697]
[1726589838252,0.08189,61048.0,61042.0,0.38187878]
[1726589838444,0.28,61057.0,61042.0,0.02107878]
[1726589838445,0.081897,61043.0,61042.0,0.02107878]
[1726589838643,0.081897,61043.0,61039.0,0.09725704]
[1726589839156,0.081897,61043.0,61039.0,0.00245704]
[1726589839353,0.081897,61043.0,61042.0,0.006]
[1726589839755,0.082897,61043.0,61039.0,0.00645704]
[1726589839957,0.082897,61043.0,61039.0,0.02736555]
[1726589840254,0.082897,61043.0,61039.0,0.00645704]
[1726589840255,0.083897,61043.0,61039.0,0.00645704]
[1726589841253,0.002,61043.0,61039.0,0.02759617]
[1726589841455,0.002,61043.0,61042.0,0.006]
[1726589841757,0.083897,61043.0,61042.0,0.006]
[1726589842151,0.083897,61043.0,61039.0,0.00845704]
[1726589842650,0.3608,61040.0,61039.0,0.00845704]
[1726589842855,0.3608,61040.0,61039.0,0.00245704]
[1726589843949,0.442701,61040.0,61039.0,0.00845704]
[1726589844253,0.524602,61040.0,61039.0,0.00845704]
[1726589845264,0.08192,61026.0,61025.0,0.3271]
[1726589845450,0.081922,61024.0,61023.0,0.00245806]
[1726589845955,0.3608,61028.0,61023.0,0.00245806]
[1726589846159,0.08192,61026.0,61023.0,0.00245806]
[1726589846356,0.3608,61028.0,61022.0,0.3608]
[1726589846555,0.083922,61024.0,61023.0,0.006]
[1726589847263,0.081924,61023.0,61022.0,0.38124722]
[1726589847566,1.1324,61023.0,61012.0,0.0016]
[1726589847864,1.1324,61023.0,61001.0,0.44210726]
[1726589847865,0.3608,61013.0,61010.0,0.0016]
[1726589848159,0.3608,61013.0,61012.0,0.28]
[1726589848362,0.3608,61025.0,61012.0,0.6408]
[1726589848557,0.081927,61021.0,61012.0,0.3608]
[1726589848756,0.3608,61025.0,61012.0,0.3608]
[1726589849061,0.001,61024.0,61013.0,0.081936]
[1726589849261,0.001,61024.0,61012.0,0.3608]
[1726589849262,0.081927,61021.0,61012.0,0.3608]
[1726589849456,0.3618,61025.0,61012.0,0.3608]
[1726589849661,0.3618,61025.0,61015.0,0.081933]
[1726589849859,0.443721,61025.0,61015.0,0.081933]
[1726589850052,0.001,61023.0,61016.0,0.081933]
[1726589850655,0.001,61023.0,61017.0,0.28]
[1726589850960,0.444721,61025.0,61017.0,0.361931]
[1726589851553,0.443721,61025.0,61018.0,0.08193]
[1726589851764,0.443721,61025.0,61017.0,0.28]
[1726589851765,0.001,61023.0,61017.0,0.28]
[1726589852152,0.001,61023.0,61016.0,0.081933]
[1726589852754,0.001,61023.0,61012.0,0.66205758]
[1726589852755,0.3608,61020.0,61012.0,0.02125758]
[1726589852962,0.3608,61014.0,61001.0,0.3608]
[1726589853155,0.081941,61010.0,61001.0,0.620753]
[1726589853460,0.3608,61014.0,61008.0,0.02391289]
[1726589853657,0.442742,61009.0,61008.0,0.00245817]
[1726589854665,0.524684,61009.0,61008.0,0.00245817]
[1726589854853,0.525684,61009.0,61008.0,0.00245817]
[1726589856266,0.526684,61009.0,61008.0,0.00245817]
[1726589857266,0.081945,61007.0,61006.0,0.02107088]
[1726589857458,0.444742,61009.0,60994.0,0.181]
[1726589857658,0.3608,61001.0,60999.0,0.081956]
[1726589858366,0.3608,61001.0,61000.0,0.02299612]
[1726589858561,0.3608,61001.0,61000.0,0.364454]
[1726589858763,0.3618,61001.0,61000.0,0.364454]
[1726589858959,0.31258945,61001.0,61000.0,0.364454]
[1726589859459,0.31258945,61001.0,61000.0,0.105506]
[1726589860360,0.31358945,61001.0,61000.0,0.105506]
[1726589861462,0.31358945,61001.0,61000.0,0.023552]
[1726589861779,0.39554245,61001.0,61000.0,0.023552]
[1726589862062,0.66749545,61001.0,61000.0,0.023552]
[1726589864061,0.75749545,61001.0,61000.0,0.023552]
[1726589864460,0.70007696,61001.0,61000.0,0.023552]
[1726589865654,0.42007696,61001.0,61000.0,0.023552]
[1726589866865,0.36265826,61001.0,61000.0,0.023552]
[1726589867259,0.36265826,61001.0,61000.0,0.08819593]
[1726589868363,0.002,61001.0,61000.0,0.105506]
[1726589868570,0.3608,61009.0,61003.0,0.081949]
[1726589868764,0.170633,61016.0,61006.0,0.45836872]
[1726589868765,0.0887,61016.0,61006.0,0.45836872]
[1726589868961,0.081936,61014.0,61011.0,0.08132639]
[1726589869167,0.3608,61012.0,61005.0,0.09756872]
[1726589869372,0.36072955,61012.0,61009.0,0.09763843]
[1726589869675,0.36072955,61012.0,60998.0,0.18266]
[1726589869676,0.44266755,61012.0,61011.0,0.08136833]
[1726589869870,0.44266755,61012.0,61011.0,0.20626915]
[1726589870060,0.44266755,61012.0,61011.0,0.08136833]
[1726589870261,0.44266755,61012.0,61011.0,0.12490804]
[1726589870469,0.082938,61012.0,61011.0,0.12490804]
[1726589870673,0.001,61012.0,61011.0,0.12490804]
[1726589870973,0.082938,61012.0,61011.0,0.24346232]
[1726589871363,0.082938,61012.0,61011.0,0.14582389]
[1726589871661,0.001,61012.0,61011.0,0.14580296]
[1726589871964,0.001,61012.0,61011.0,0.297808]
[1726589872266,0.0929,61024.0,61012.0,0.081938]
[1726589872267,0.081929,61020.0,61012.0,0.081938]
[1726589872464,0.3608,61021.0,61016.0,0.3608]
[1726589872670,0.3608,61021.0,61017.0,0.27689215]
[1726589872865,0.3608,61021.0,61018.0,0.27689215]
[1726589872866,0.081929,61019.0,61018.0,0.27689215]
[1726589873170,0.3608,61021.0,61018.0,0.27689215]
[1726589873363,0.001,61020.0,61019.0,0.27689215]
[1726589873563,0.001,61020.0,61019.0,0.35882115]
[1726589873761,0.001,61020.0,61019.0,0.27689215]
[1726589875074,0.3618,61021.0,61019.0,0.27689215]
[1726589875382,0.443726,61021.0,61020.0,0.27689215]
[1726589875872,0.442726,61021.0,61020.0,0.27689215]
[1726589876670,0.443726,61021.0,61020.0,0.27689215]
[1726589876877,0.444726,61021.0,61020.0,0.27789215]
[1726589878469,0.806652,61021.0,61020.0,0.27789215]
[1726589878786,0.7574505,61021.0,61020.0,0.27789813]
[1726589879074,1.980218,61021.0,61020.0,0.27789813]
[1726589879284,1.980218,61021.0,61020.0,0.12588711]
[1726589880274,2.340018,61021.0,61020.0,0.0826468]
[1726589880480,2.343018,61021.0,61020.0,0.12590235]
[1726589880773,2.343018,61021.0,61020.0,0.20754995]
[1726589880981,2.345018,61021.0,61020.0,0.001]
[1726589881174,0.245796,61017.0,61016.0,0.09795779]
[1726589881374,0.081937,61013.0,61012.0,0.00245844]
[1726589881681,0.081937,61013.0,61009.0,0.09795779]
[1726589881682,0.081941,61010.0,61009.0,0.09795779]
[1726589881865,0.081941,61010.0,61007.0,0.09795779]
[1726589881866,0.081942,61009.0,61007.0,0.09795779]
[1726589882065,0.804688,61008.0,61007.0,0.09795779]
[1726589882288,0.804688,61008.0,61004.0,0.00245881]
[1726589882289,0.163896,61005.0,61004.0,0.1004166]
[1726589882469,0.524696,61005.0,61004.0,0.00245881]
[1726589882670,1.616456,61005.0,61004.0,0.00245881]
[1726589883977,1.617456,61005.0,61004.0,0.00245881]
[1726589884179,1.63828866,61005.0,61004.0,0.00245881]
[1726589884681,1.63928866,61005.0,61004.0,0.00245881]
[1726589885683,1.03928866,61005.0,61004.0,0.00245881]
[1726589886281,1.03928866,61005.0,61004.0,0.06779525]
[1726589886682,1.03928866,61005.0,61003.0,0.06533644]
[1726589886683,0.163898,61004.0,61003.0,0.06533644]
[1726589886872,0.081952,61002.0,61000.0,0.0025]
[1726589887176,0.081952,61002.0,61000.0,0.0236862]
[1726589887376,0.081953,61001.0,61000.0,0.06782485]
[1726589887767,0.081953,61001.0,61000.0,0.0025]
[1726589887974,0.163906,61001.0,61000.0,0.0678242]
[1726589888272,0.163906,61001.0,61000.0,0.0025]
[1726589888876,0.606659,61001.0,61000.0,0.0025]
[1726589889076,0.606659,61001.0,60996.0,0.0653242]
[1726589889077,0.081967,60991.0,60990.0,0.0214527]
[1726589889377,0.081967,60991.0,60982.0,0.081978]
[1726589889378,0.081979,60983.0,60982.0,0.081978]
[1726589889577,0.081989,60975.0,60974.0,0.081988]
[1726589889769,0.081989,60975.0,60971.0,0.10041795]
[1726589889770,0.081992,60972.0,60971.0,0.10549986]
[1726589889970,0.081992,60972.0,60971.0,0.02350786]
[1726589890572,0.081992,60972.0,60971.0,0.0210477]
[1726589890774,0.16399,60970.0,60962.0,0.3608]
[1726589890976,0.6408,60970.0,60958.0,0.00246069]
[1726589891280,0.3608,60962.0,60955.0,0.0016]
[1726589891484,0.3608,60970.0,60948.0,0.36326108]
[1726589891485,0.3608,60970.0,60959.0,0.6408]
[1726589891672,0.3608,60970.0,60959.0,0.3608]
[1726589892169,0.28,60970.0,60964.0,0.3608]
[1726589892568,0.082001,60965.0,60964.0,0.3608]
[1726589892869,0.081997,60968.0,60964.0,0.3608]
[1726589893174,0.081999,60967.0,60964.0,0.3608]
[1726589893680,0.282,60970.0,60964.0,0.3608]
[1726589893681,0.281,60970.0,60964.0,0.3608]
[1726589893883,0.001,60965.0,60964.0,0.38178312]
[1726589894076,0.363001,60965.0,60964.0,0.02098312]
[1726589894281,0.08201,60959.0,60958.0,0.00246068]
[1726589894477,0.68176948,60959.0,60958.0,0.02355295]
[1726589894685,0.68176948,60959.0,60958.0,0.00246068]
[1726589895880,0.68276948,60959.0,60958.0,0.00246068]
[1726589896083,0.68376948,60959.0,60958.0,0.00246068]
[1726589896479,0.082019,60952.0,60949.0,0.3608]
[1726589896674,0.082022,60950.0,60949.0,0.3608]
[1726589896875,0.362016,60954.0,60949.0,0.38043656]
[1726589897587,0.28,60954.0,60949.0,0.38043656]
[1726589898176,0.082022,60950.0,60949.0,0.38043656]
[1726589898787,0.28,60954.0,60949.0,0.38043656]
[1726589898788,0.002,60952.0,60949.0,0.38043656]
[1726589899087,0.082006,60962.0,60950.0,0.4922]
[1726589899287,0.082008,60961.0,60949.0,0.38203656]
[1726589899583,0.001,60954.0,60949.0,0.38043656]
[1726589899982,0.001,60954.0,60952.0,0.082019]
[1726589900284,0.281,60954.0,60949.0,0.38043656]
[1726589900483,0.08202,60951.0,60949.0,0.38043656]
[1726589900676,0.082022,60950.0,60949.0,0.38043656]
[1726589901081,1.3722,60950.0,60936.0,0.3608]
[1726589901280,0.28,60938.0,60933.0,0.082044]
[1726589901482,0.28,60938.0,60935.0,0.082041]
[1726589901483,0.23074036,60938.0,60935.0,0.082041]
[1726589901886,0.362032,60943.0,60937.0,0.3608]
[1726589902185,0.28,60943.0,60937.0,0.3608]
[1726589902381,0.082037,60939.0,60937.0,0.3608]
[1726589902580,0.001,60938.0,60937.0,0.3608]
[1726589902780,0.001,60938.0,60933.0,0.001]
[1726589902781,0.002,60938.0,60935.0,0.001]
[1726589902981,0.002,60938.0,60937.0,0.082039]
[1726589903278,0.28,60943.0,60937.0,0.083039]
[1726589903279,0.082034,60941.0,60937.0,0.083039]
[1726589903590,0.002,60943.0,60937.0,0.002]
[1726589903781,0.002,60943.0,60937.0,0.282]
[1726589904293,0.002,60943.0,60939.0,0.082036]
[1726589904486,0.002,60943.0,60941.0,0.082034]